fUST/lending_fUST_20241217
["ID","MTS","AMOUNT","RATE_DAILY","PERIOD"]
[345610005,1734379850263,-2463.75,0.00028,2]
[345610006,1734379850276,-162.7,0.00028,2]
[345610007,1734379850287,-300.0,0.00028,13]
[345610008,1734379850298,-798.01965491,0.00028011,2]
[345610009,1734379850311,-151.0,0.00028033,2]
[345610010,1734379850321,-153.0,0.00028117,2]
[345610011,1734379850333,-153.0,0.00028117,2]
[345610012,1734379850345,-153.0,0.00028118,2]
[345610013,1734379850357,-153.0,0.00028118,2]
[345610014,1734379850368,-153.0,0.00028118,2]
[345610015,1734379850380,-153.0,0.00028118,2]
[345610016,1734379850391,-153.0,0.00028118,2]
[345610017,1734379850403,-153.0,0.00028118,2]
[345610018,1734379850415,-153.0,0.00028118,2]
[345610019,1734379850425,-153.0,0.00028119,2]
[345610020,1734379850436,-153.0,0.00028119,2]
[345610021,1734379850446,-153.0,0.00028119,2]
[345610022,1734379850457,-500.0,0.00028219,7]
[345610023,1734379850468,-500.0,0.00028219,7]
[345610024,1734379850479,-500.0,0.00028219,7]
[345610025,1734379850491,-500.0,0.00028219,2]
[345610026,1734379850503,-500.0,0.00028219,7]
[345610027,1734379850514,-500.0,0.00028219,7]
[345610028,1734379850526,-1361.4,0.00028219,7]
[345610029,1734379850538,-500.0,0.00028219,7]
[345610030,1734379850550,-500.0,0.00028219,7]
[345610031,1734379850563,-500.0,0.00028219,7]
[345610032,1734379850575,-500.0,0.00028219,7]
[345610033,1734379850586,-500.0,0.00028219,7]
[345610034,1734379850599,-500.0,0.00028219,7]
[345610035,1734379850610,-500.0,0.00028219,7]
[345610036,1734379850622,-500.0,0.00028219,7]
[345610037,1734379850634,-500.0,0.00028219,7]
[345610038,1734379850644,-500.0,0.00028219,7]
[345610039,1734379850657,-500.0,0.00028219,7]
[345610040,1734379850667,-168.0,0.00028219,7]
[345610041,1734379850678,-500.0,0.00028219,7]
[345610042,1734379850688,-500.0,0.00028219,7]
[345610043,1734379850698,-1362.68,0.00028219,7]
[345610044,1734379850709,-1000.0,0.00028219,2]
[345610045,1734379850721,-930.18,0.00028219,7]
[345610046,1734379850749,-505.73043511,0.00028219,7]
[345610047,1734379850763,-500.0,0.00028219,7]
[345610048,1734379850774,-500.0,0.00028219,7]
[345610049,1734379850786,-500.0,0.00028219,7]
[345610050,1734379850796,-1159.82,0.00028219,2]
[345610051,1734379850806,-548.15,0.00028219,7]
[345610052,1734379850816,-507.31,0.00028219,7]
[345610053,1734379850828,-500.0,0.00028219,7]
[345610054,1734379850838,-831.58,0.00028219,7]
[345610055,1734379850849,-500.0,0.00028219,7]
[345610056,1734379850859,-500.0,0.00028219,7]
[345610057,1734379850871,-500.0,0.00028219,7]
[345610058,1734379850881,-716.28,0.00028219,7]
[345610059,1734379850892,-500.0,0.00028219,7]
[345610060,1734379850902,-518.57760692,0.00028219,7]
[345610061,1734379850913,-500.0,0.00028219,7]
[345610062,1734379850923,-500.0,0.00028219,7]
[345610063,1734379850933,-500.0,0.00028219,7]
[345610064,1734379850944,-500.0,0.00028219,7]
[345610065,1734379850954,-500.0,0.00028219,7]
[345610066,1734379850964,-500.0,0.00028219,7]
[345610067,1734379850975,-500.0,0.00028219,7]
[345610068,1734379850986,-500.0,0.00028219,7]
[345610069,1734379850996,-500.0,0.00028219,7]
[345610070,1734379851007,-500.0,0.00028219,7]
[345610071,1734379851019,-500.0,0.00028219,2]
[345610072,1734379851030,-500.0,0.00028219,7]
[345610073,1734379851042,-500.0,0.00028219,7]
[345610074,1734379851052,-500.0,0.00028219,7]
[345610075,1734379851063,-500.0,0.00028219,7]
[345610076,1734379851073,-500.0,0.00028219,7]
[345610077,1734379851084,-500.0,0.00028219,7]
[345610078,1734379851095,-500.0,0.00028219,7]
[345610079,1734379851105,-500.0,0.00028219,7]
[345610080,1734379851115,-565.96137031,0.00028219,7]
[345610081,1734379851126,-500.0,0.00028219,7]
[345610082,1734379851136,-500.0,0.00028219,7]
[345610083,1734379851147,-500.0,0.00028219,7]
[345610084,1734379851157,-500.0,0.00028219,7]
[345610085,1734379851167,-500.0,0.00028219,7]
[345610086,1734379851178,-1281.29,0.00028219,7]
[345610087,1734379851189,-500.0,0.00028219,7]
[345610088,1734379851199,-533.27,0.00028219,7]
[345610089,1734379851210,-500.0,0.00028219,7]
[345610090,1734379851220,-9328.35,0.00028219,7]
[345610091,1734379851231,-1051.75,0.00028219,7]
[345610092,1734379851244,-6080.86,0.00028219,7]
[345610093,1734379851273,-663.11,0.00028219,7]
[345610094,1734379851284,-4474.25,0.00028219,7]
[345610095,1734379851296,-1465.05,0.00028219,7]
[345610096,1734379851307,-500.0,0.00028219,7]
[345610097,1734379851319,-500.0,0.00028219,7]
[345610098,1734379851330,-2124.74,0.00028219,5]
[345610099,1734379851341,-1336.85,0.00028219,7]
[345610100,1734379851352,-500.0,0.00028219,7]
[345610101,1734379851363,-500.0,0.00028219,7]
[345610102,1734379851374,-500.0,0.00028219,7]
[345610103,1734379851385,-500.0,0.00028219,7]
[345610104,1734379851396,-28712.1,0.00028219,7]
[345610105,1734379851407,-575.38,0.00028219,7]
[345610106,1734379851417,-500.0,0.00028219,7]
[345610107,1734379851429,-942.46,0.00028219,7]
[345610108,1734379851440,-500.0,0.00028219,7]
[345610109,1734379851451,-527.03055174,0.00028219,7]
[345610110,1734379851462,-1620.62,0.00028219,7]
[345610111,1734379851473,-500.0,0.00028219,7]
[345610112,1734379851484,-500.0,0.00028219,7]
[345610113,1734379851495,-500.0,0.00028219,7]
[345610114,1734379851506,-500.0,0.00028219,2]
[345610115,1734379851517,-500.0,0.00028219,7]
[345610116,1734379851529,-1561.39,0.00028219,7]
[345610117,1734379851540,-3178.65,0.00028219,7]
[345610118,1734379851552,-500.0,0.00028219,7]
[345610119,1734379851563,-500.0,0.00028219,7]
[345610120,1734379851574,-2897.69,0.00028219,7]
[345610121,1734379851584,-802.69,0.00028219,7]
[345610122,1734379851596,-500.0,0.00028219,7]
[345610123,1734379851607,-500.0,0.00028219,7]
[345610124,1734379851617,-1038.17,0.00028219,7]
[345610125,1734379851628,-500.0,0.00028219,7]
[345610126,1734379851638,-1984.0,0.00028219,7]
[345610127,1734379851649,-500.0,0.00028219,7]
[345610128,1734379851659,-659.89,0.00028219,7]
[345610129,1734379851670,-500.0,0.00028219,7]
[345610130,1734379851681,-1608.74,0.00028219,7]
[345610131,1734379851691,-500.0,0.00028219,7]
[345610132,1734379851702,-1378.43,0.00028219,7]
[345610133,1734379851712,-500.0,0.00028219,7]
[345610134,1734379851722,-500.0,0.00028219,7]
[345610135,1734379851733,-1465.72,0.00028219,7]
[345610136,1734379851744,-1110.6,0.00028219,7]
[345610137,1734379851755,-876.74,0.00028219,7]
[345610138,1734379851779,-500.0,0.00028219,7]
[345610139,1734379851790,-500.0,0.00028219,7]
[345610140,1734379851800,-5747.47,0.00028219,7]
[345610141,1734379851811,-500.0,0.00028219,7]
[345610142,1734379851823,-500.0,0.00028219,7]
[345610143,1734379851833,-500.0,0.00028219,7]
[345610144,1734379851844,-500.0,0.00028219,7]
[345610145,1734379851855,-500.0,0.00028219,7]
[345610146,1734379851866,-1000.0,0.00028221,5]
[345610147,1734379851876,-523.961,0.0002827,2]
[345610148,1734379851887,-420.0,0.00028323,2]
[345610149,1734379851897,-153.26,0.000284,31]
[345610150,1734379851907,-153.26,0.000284,31]
[345610151,1734379851918,-153.26,0.000284,31]
[345610152,1734379851927,-153.26,0.000284,31]
[345610153,1734379851938,-153.26,0.000284,31]
[345610154,1734379851948,-153.26,0.000284,31]
[345610155,1734379851958,-153.26,0.000284,31]
[345610156,1734379851968,-500.0,0.00028493,7]
[345610157,1734379851978,-500.0,0.00028493,7]
[345610158,1734379851989,-500.0,0.00028493,7]
[345610159,1734379851999,-500.0,0.00028493,2]
[345610160,1734379852010,-500.0,0.00028493,7]
[345610161,1734379852020,-500.0,0.00028493,7]
[345610162,1734379852030,-1361.4,0.00028493,7]
[345610163,1734379852041,-500.0,0.00028493,7]
[345610164,1734379852051,-500.0,0.00028493,7]
[345610165,1734379852061,-500.0,0.00028493,7]
[345610166,1734379852072,-500.0,0.00028493,7]
[345610167,1734379852081,-500.0,0.00028493,7]
[345610168,1734379852091,-500.0,0.00028493,7]
[345610169,1734379852101,-500.0,0.00028493,7]
[345610170,1734379852112,-500.0,0.00028493,7]
[345610171,1734379852122,-500.0,0.00028493,7]
[345610172,1734379852132,-500.0,0.00028493,7]
[345610173,1734379852142,-500.0,0.00028493,7]
[345610174,1734379852152,-168.0,0.00028493,7]
[345610175,1734379852162,-500.0,0.00028493,7]
[345610176,1734379852172,-500.0,0.00028493,7]
[345610177,1734379852182,-1362.68,0.00028493,7]
[345610178,1734379852193,-1000.0,0.00028493,2]
[345610179,1734379852203,-930.18,0.00028493,7]
[345610180,1734379852481,-500.0,0.00028493,7]
[345610181,1734379852496,-500.0,0.00028493,7]
[345610182,1734379852506,-500.0,0.00028493,7]
[345610183,1734379852516,-1159.82,0.00028493,2]
[345610184,1734379852526,-548.15,0.00028493,7]
[345610185,1734379852535,-507.31,0.00028493,7]
[345610186,1734379852545,-500.0,0.00028493,7]
[345610187,1734379852555,-831.58,0.00028493,7]
[345610188,1734379852565,-500.0,0.00028493,7]
[345610189,1734379852575,-500.0,0.00028493,7]
[345610190,1734379852586,-500.0,0.00028493,7]
[345610191,1734379852596,-716.28,0.00028493,7]
[345610192,1734379852605,-500.0,0.00028493,7]
[345610193,1734379852614,-500.0,0.00028493,7]
[345610194,1734379852624,-500.0,0.00028493,7]
[345610195,1734379852634,-500.0,0.00028493,7]
[345610196,1734379852643,-500.0,0.00028493,7]
[345610197,1734379852653,-500.0,0.00028493,7]
[345610198,1734379852663,-500.0,0.00028493,7]
[345610199,1734379852673,-500.0,0.00028493,7]
[345610200,1734379852683,-500.0,0.00028493,7]
[345610201,1734379852693,-500.0,0.00028493,7]
[345610202,1734379852702,-500.0,0.00028493,7]
[345610203,1734379852712,-500.0,0.00028493,7]
[345610204,1734379852722,-500.0,0.00028493,7]
[345610205,1734379852731,-500.0,0.00028493,7]
[345610206,1734379852741,-500.0,0.00028493,7]
[345610207,1734379852752,-338.16162026,0.00028493,7]
[345610208,1734379852762,-500.0,0.00028493,7]
[345610209,1734379852772,-500.0,0.00028493,7]
[345610210,1734379852803,-543.89304913,0.00028493,7]
[345610211,1734379852813,-500.0,0.00028493,7]
[345610212,1734379852823,-500.0,0.00028493,7]
[345610213,1734379852833,-500.0,0.00028493,7]
[345610214,1734379852843,-500.0,0.00028493,7]
[345610215,1734379852853,-500.0,0.00028493,7]
[345610216,1734379852863,-1281.29,0.00028493,7]
[345610217,1734379852873,-500.0,0.00028493,7]
[345610218,1734379852883,-533.27,0.00028493,7]
[345610219,1734379852893,-500.0,0.00028493,7]
[345610220,1734379852902,-9328.35,0.00028493,7]
[345610221,1734379852912,-1051.75,0.00028493,7]
[345610222,1734379852921,-6080.86,0.00028493,7]
[345610223,1734379852931,-663.11,0.00028493,7]
[345610224,1734379852940,-4474.25,0.00028493,7]
[345610225,1734379852950,-1465.05,0.00028493,7]
[345610226,1734379852959,-500.0,0.00028493,7]
[345610227,1734379852969,-500.0,0.00028493,7]
[345610228,1734379852978,-2124.74,0.00028493,5]
[345610229,1734379852988,-1336.85,0.00028493,7]
[345610230,1734379852999,-500.0,0.00028493,7]
[345610231,1734379853009,-500.0,0.00028493,7]
[345610232,1734379853018,-500.0,0.00028493,7]
[345610233,1734379853028,-500.0,0.00028493,7]
[345610234,1734379853038,-28712.1,0.00028493,7]
[345610235,1734379853048,-575.38,0.00028493,7]
[345610236,1734379853058,-500.0,0.00028493,7]
[345610237,1734379853067,-942.46,0.00028493,7]
[345610238,1734379853076,-500.0,0.00028493,7]
[345610239,1734379853086,-1620.62,0.00028493,7]
[345610240,1734379853096,-500.0,0.00028493,7]
[345610241,1734379853106,-500.0,0.00028493,7]
[345610242,1734379853117,-500.0,0.00028493,7]
[345610243,1734379853127,-500.0,0.00028493,2]
[345610244,1734379853137,-500.0,0.00028493,7]
[345610245,1734379853147,-1561.39,0.00028493,7]
[345610246,1734379853157,-3178.65,0.00028493,7]
[345610247,1734379853166,-500.0,0.00028493,7]
[345610248,1734379853175,-411.34024084,0.00028493,7]
[345610249,1734379853184,-2897.69,0.00028493,7]
[345610250,1734379853194,-802.69,0.00028493,7]
[345610251,1734379853204,-500.0,0.00028493,7]
[345610252,1734379853213,-500.0,0.00028493,7]
[345610253,1734379853222,-1038.17,0.00028493,7]
[345610254,1734379853231,-500.0,0.00028493,7]
[345610255,1734379853241,-1984.0,0.00028493,7]
[345610256,1734379853251,-500.0,0.00028493,7]
[345610257,1734379853261,-659.89,0.00028493,7]
[345610258,1734379853274,-500.0,0.00028493,7]
[345610259,1734379853284,-1608.74,0.00028493,7]
[345610260,1734379853295,-500.0,0.00028493,7]
[345610261,1734379853308,-1378.43,0.00028493,7]
[345610262,1734379853322,-500.0,0.00028493,7]
[345610263,1734379853332,-1465.72,0.00028493,7]
[345610264,1734379853344,-500.0,0.00028493,7]
[345610265,1734379853359,-1110.6,0.00028493,7]
[345610266,1734379853368,-876.74,0.00028493,7]
[345610267,1734379853378,-500.0,0.00028493,7]
[345610268,1734379853388,-500.0,0.00028493,7]
[345610269,1734379853398,-5747.47,0.00028493,7]
[345610270,1734379853407,-500.0,0.00028493,7]
[345610271,1734379853417,-500.0,0.00028493,7]
[345610272,1734379853427,-500.0,0.00028493,7]
[345610273,1734379853436,-500.0,0.00028493,7]
[345610274,1734379853446,-500.0,0.00028493,7]
[345610275,1734379853456,-798.01965491,0.00028517,2]
[345610276,1734379853466,-805.94523866,0.00028602,2]
[345610277,1734379853476,-500.0,0.00028766,2]
[345610278,1734379853486,-500.0,0.00028766,2]
[345610279,1734379853496,-500.0,0.00028766,2]
[345610280,1734379853506,-500.0,0.00028766,2]
[345610281,1734379853516,-500.0,0.00028766,2]
[345610282,1734379853525,-500.0,0.00028766,2]
[345610283,1734379853535,-500.0,0.00028766,2]
[345610284,1734379853544,-500.0,0.00028766,2]
[345610285,1734379853554,-500.0,0.00028766,2]
[345610286,1734379853564,-500.0,0.00028766,2]
[345610287,1734379853573,-500.0,0.00028766,2]
[345610288,1734379853584,-500.0,0.00028766,2]
[345610289,1734379853594,-500.0,0.00028766,2]
[345610290,1734379853604,-500.0,0.00028766,2]
[345610291,1734379853614,-500.0,0.00028766,2]
[345610292,1734379853624,-500.0,0.00028766,2]
[345610293,1734379853634,-500.0,0.00028766,2]
[345610294,1734379853643,-500.0,0.00028766,2]
[345610295,1734379853653,-500.0,0.00028766,2]
[345610296,1734379853664,-500.0,0.00028766,2]
[345610297,1734379853673,-191.36875591,0.00028766,2]
[345610298,1734379853683,-500.0,0.00028766,2]
[345610299,1734379853692,-500.0,0.00028766,2]
[345610300,1734379853702,-500.0,0.00028766,2]
[345610301,1734379853712,-500.0,0.00028767,7]
[345610302,1734379853722,-500.0,0.00028767,7]
[345610303,1734379853731,-500.0,0.00028767,7]
[345610304,1734379853741,-494.30826148,0.00028767,2]
[345610305,1734379853751,-500.0,0.00028767,7]
[345610306,1734379853760,-500.0,0.00028767,7]
[345610307,1734379853769,-1361.4,0.00028767,7]
[345610308,1734379853779,-500.0,0.00028767,7]
[345610309,1734379853788,-500.0,0.00028767,7]
[345610310,1734379853797,-500.0,0.00028767,7]
[345610311,1734379853808,-500.0,0.00028767,7]
[345610312,1734379853821,-500.0,0.00028767,7]
[345610313,1734379853835,-500.0,0.00028767,7]
[345610314,1734379853845,-500.0,0.00028767,7]
[345610315,1734379853856,-500.0,0.00028767,7]
[345610316,1734379853866,-500.0,0.00028767,7]
[345610317,1734379853875,-362.89166805,0.00028767,7]
[345610318,1734379853885,-500.0,0.00028767,7]
[345610319,1734379853895,-168.0,0.00028767,7]
[345610320,1734379853904,-500.0,0.00028767,7]
[345610321,1734379853914,-500.0,0.00028767,7]
[345610322,1734379853923,-1362.68,0.00028767,7]
[345610323,1734379853933,-1000.0,0.00028767,2]
[345610324,1734379853943,-930.18,0.00028767,7]
[345610325,1734379853953,-500.0,0.00028767,7]
[345610326,1734379853962,-508.23905114,0.00028767,7]
[345610327,1734379853972,-500.0,0.00028767,7]
[345610328,1734379853982,-1159.82,0.00028767,2]
[345610329,1734379853992,-548.15,0.00028767,7]
[345610330,1734379854002,-507.31,0.00028767,7]
[345610331,1734379854012,-500.0,0.00028767,7]
[345610332,1734379854021,-831.58,0.00028767,7]
[345610333,1734379854031,-500.0,0.00028767,7]
[345610334,1734379854041,-500.0,0.00028767,7]
[345610335,1734379854050,-500.0,0.00028767,7]
[345610336,1734379854066,-716.28,0.00028767,7]
[345610337,1734379854076,-500.0,0.00028767,7]
[345610338,1734379854086,-500.0,0.00028767,7]
[345610339,1734379854097,-500.0,0.00028767,7]
[345610340,1734379854107,-500.0,0.00028767,7]
[345610341,1734379854117,-500.0,0.00028767,7]
[345610342,1734379854127,-500.0,0.00028767,7]
[345610343,1734379854137,-500.0,0.00028767,7]
[345610344,1734379854146,-500.0,0.00028767,7]
[345610345,1734379854156,-500.0,0.00028767,7]
[345610346,1734379854166,-500.0,0.00028767,7]
[345610347,1734379854175,-500.0,0.00028767,7]
[345610348,1734379854184,-500.0,0.00028767,7]
[345610349,1734379854194,-500.0,0.00028767,7]
[345610350,1734379854204,-500.0,0.00028767,7]
[345610351,1734379854214,-500.0,0.00028767,7]
[345610352,1734379854223,-500.0,0.00028767,7]
[345610353,1734379854233,-500.0,0.00028767,7]
[345610354,1734379854243,-500.0,0.00028767,7]
[345610355,1734379854253,-500.0,0.00028767,7]
[345610356,1734379854264,-500.0,0.00028767,7]
[345610357,1734379854274,-500.0,0.00028767,7]
[345610358,1734379854284,-1281.29,0.00028767,7]
[345610359,1734379854294,-337.32991606,0.00028767,7]
[345610360,1734379854303,-533.27,0.00028767,7]
[345610361,1734379854329,-500.0,0.00028767,7]
[345610362,1734379854339,-9328.35,0.00028767,7]
[345610363,1734379854349,-1051.75,0.00028767,7]
[345610364,1734379854359,-6080.86,0.00028767,7]
[345610365,1734379854369,-663.11,0.00028767,7]
[345610366,1734379854379,-4474.25,0.00028767,7]
[345610367,1734379854389,-1465.05,0.00028767,7]
[345610368,1734379854399,-500.0,0.00028767,7]
[345610369,1734379854408,-500.0,0.00028767,7]
[345610370,1734379854418,-2124.74,0.00028767,5]
[345610371,1734379854427,-1336.85,0.00028767,7]
[345610372,1734379854437,-500.0,0.00028767,7]
[345610373,1734379854447,-500.0,0.00028767,7]
[345610374,1734379854457,-500.0,0.00028767,7]
[345610375,1734379854467,-500.0,0.00028767,7]
[345610376,1734379854478,-28712.1,0.00028767,7]
[345610377,1734379854488,-575.38,0.00028767,7]
[345610378,1734379854498,-489.03826431,0.00028767,7]
[345610379,1734379854508,-942.46,0.00028767,7]
[345610380,1734379854518,-500.0,0.00028767,7]
[345610381,1734379854528,-1620.62,0.00028767,7]
[345610382,1734379854538,-500.0,0.00028767,7]
[345610383,1734379854548,-422.85334935,0.00028767,7]
[345610384,1734379854557,-500.0,0.00028767,7]
[345610385,1734379854568,-500.0,0.00028767,2]
[345610386,1734379854578,-500.0,0.00028767,7]
[345610387,1734379854588,-1561.39,0.00028767,7]
[345610388,1734379854598,-3178.65,0.00028767,7]
[345610389,1734379854608,-500.0,0.00028767,7]
[345610390,1734379854618,-2897.69,0.00028767,7]
[345610391,1734379854628,-802.69,0.00028767,7]
[345610392,1734379854638,-500.0,0.00028767,7]
[345610393,1734379854647,-500.0,0.00028767,7]
[345610394,1734379854657,-1038.17,0.00028767,7]
[345610395,1734379854667,-500.0,0.00028767,7]
[345610396,1734379854677,-1984.0,0.00028767,7]
[345610397,1734379854687,-500.0,0.00028767,7]
[345610398,1734379854697,-659.89,0.00028767,7]
[345610399,1734379854707,-500.0,0.00028767,7]
[345610400,1734379854718,-1608.74,0.00028767,7]
[345610401,1734379854728,-500.0,0.00028767,7]
[345610402,1734379854737,-1378.43,0.00028767,7]
[345610403,1734379854747,-500.0,0.00028767,7]
[345610404,1734379854756,-500.0,0.00028767,7]
[345610405,1734379854766,-1465.72,0.00028767,7]
[345610406,1734379854776,-1110.6,0.00028767,7]
[345610407,1734379854785,-876.74,0.00028767,7]
[345610408,1734379854795,-500.0,0.00028767,9]
[345610409,1734379854804,-500.0,0.00028767,7]
[345610410,1734379854830,-500.0,0.00028767,7]
[345610411,1734379854839,-5747.47,0.00028767,7]
[345610412,1734379854849,-500.0,0.00028767,7]
[345610413,1734379854859,-500.0,0.00028767,7]
[345610414,1734379854868,-500.0,0.00028767,7]
[345610415,1734379854877,-500.0,0.00028767,7]
[345610416,1734379854887,-500.0,0.00028767,7]
[345610417,1734379854897,-351.7244906,0.00028767,30]
[345610418,1734379854907,-351.7244906,0.00028767,30]
[345610419,1734379854917,-351.7244906,0.00028767,30]
[345610420,1734379854927,-199.3398283,0.00028767,30]
[345610421,1734379854937,-13057.74,0.000288,2]
[345610422,1734379854946,-998.25,0.000288,30]
[345610423,1734379854956,-153.26,0.000288,31]
[345610424,1734379854966,-153.26,0.000288,31]
[345610425,1734379854975,-153.26,0.000288,31]
[345610426,1734379854984,-153.26,0.000288,31]
[345610427,1734379854994,-153.26,0.000288,31]
[345610428,1734379855004,-153.26,0.000288,31]
[345610429,1734379855014,-153.26,0.000288,31]
[345610430,1734379855024,-153.26,0.000288,31]
[345610431,1734379855034,-153.26,0.000288,31]
[345610432,1734379855044,-153.26,0.000288,31]
[345610433,1734379855053,-153.26,0.000288,31]
[345610434,1734379855063,-153.26,0.000288,31]
[345610435,1734379855072,-153.26,0.000288,31]
[345610436,1734379855082,-153.26,0.000288,31]
[345610437,1734379855091,-1041.36747833,0.00028922,5]
[345610438,1734379855101,-300.0,0.00029,2]
[345610439,1734379855110,-303.30024024,0.00029,2]
[345610440,1734379855120,-798.01965491,0.00029024,2]
[345610441,1734379855129,-431.940498,0.00029041,7]
[345610442,1734379855139,-431.940498,0.00029041,7]
[345610443,1734379855149,-517.323704,0.00029041,7]
[345610444,1734379855158,-517.323704,0.00029041,7]
[345610445,1734379855167,-697.547928,0.00029041,7]
[345610446,1734379855177,-697.547928,0.00029041,7]
[345610447,1734379855186,-500.0,0.00029041,7]
[345610448,1734379855196,-500.0,0.00029041,7]
[345610449,1734379855205,-500.0,0.00029041,7]
[345610450,1734379855215,-500.0,0.00029041,7]
[345610451,1734379855224,-500.0,0.00029041,7]
[345610452,1734379855234,-1361.4,0.00029041,7]
[345610453,1734379855243,-500.0,0.00029041,7]
[345610454,1734379855253,-500.0,0.00029041,7]
[345610455,1734379855262,-500.0,0.00029041,7]
[345610456,1734379855276,-500.0,0.00029041,7]
[345610457,1734379855285,-500.0,0.00029041,7]
[345610458,1734379855294,-500.0,0.00029041,7]
[345610459,1734379855304,-500.0,0.00029041,7]
[345610460,1734379855314,-500.0,0.00029041,7]
[345610461,1734379855323,-514.53254049,0.00029041,7]
[345610462,1734379855342,-500.0,0.00029041,7]
[345610463,1734379855352,-168.0,0.00029041,7]
[345610464,1734379855362,-500.0,0.00029041,7]
[345610465,1734379855373,-500.0,0.00029041,7]
[345610466,1734379855385,-1362.68,0.00029041,7]
[345610467,1734379855395,-1000.0,0.00029041,2]
[345610468,1734379855404,-930.18,0.00029041,7]
[345610469,1734379855414,-500.0,0.00029041,7]
[345610470,1734379855424,-500.0,0.00029041,7]
[345610471,1734379855434,-1159.82,0.00029041,2]
[345610472,1734379855444,-548.15,0.00029041,7]
[345610473,1734379855454,-507.31,0.00029041,7]
[345610474,1734379855463,-500.0,0.00029041,7]
[345610475,1734379855473,-831.58,0.00029041,7]
[345610476,1734379855482,-500.0,0.00029041,7]
[345610477,1734379855491,-586.17592458,0.00029041,7]
[345610478,1734379855501,-716.28,0.00029041,7]
[345610479,1734379855511,-500.0,0.00029041,7]
[345610480,1734379855521,-500.0,0.00029041,7]
[345610481,1734379855532,-500.0,0.00029041,7]
[345610482,1734379855542,-500.0,0.00029041,7]
[345610483,1734379855552,-500.0,0.00029041,7]
[345610484,1734379855562,-500.0,0.00029041,7]
[345610485,1734379855572,-500.0,0.00029041,7]
[345610486,1734379855588,-500.0,0.00029041,7]
[345610487,1734379855598,-500.0,0.00029041,7]
[345610488,1734379855609,-500.0,0.00029041,7]
[345610489,1734379855618,-500.0,0.00029041,7]
[345610490,1734379855628,-500.0,0.00029041,7]
[345610491,1734379855638,-500.0,0.00029041,7]
[345610492,1734379855648,-473.94085575,0.00029041,7]
[345610493,1734379855658,-218.63437134,0.00029041,7]
[345610494,1734379855667,-500.0,0.00029041,7]
[345610495,1734379855677,-500.0,0.00029041,7]
[345610496,1734379855687,-500.0,0.00029041,7]
[345610497,1734379855696,-500.0,0.00029041,7]
[345610498,1734379855706,-500.0,0.00029041,7]
[345610499,1734379855716,-1281.29,0.00029041,7]
[345610500,1734379855886,-533.27,0.00029041,7]
[345610501,1734379855898,-500.0,0.00029041,7]
[345610502,1734379855907,-9328.35,0.00029041,7]
[345610503,1734379855917,-1051.75,0.00029041,7]
[345610504,1734379855927,-6080.86,0.00029041,7]